Cogmind - Beta 17 @@@ ROGUE MODE // 2026.06.24 @ 21:03:41 Player: Jimothy Jimone Result: Destroyed by S-27 Virus with Autogun Performance ------------- Evolutions (4) 2000 Regions Visited (6) 1200 Robots Destroyed (0) 0 Value Destroyed (20) 20 Prototype IDs (0) 0 Alien Tech Used (0) 0 Bonus (1325) 1325 TOTAL SCORE: 4545 Bonus ------- Pacifist 1325 Cogmind --------- Core Integrity 0/850 Matter 212/300 Energy 83/100 System Corruption 0% Temperature Cool (0) Movement Core (50) Location -6/Factory Parts ------- > --- POWER (2) -------- (None) > --- PROPULSION (8) --- Improved Titanium Leg Armored Huge Wheel > --- UTILITY (3) ------ Improved Sensor Array Improved Signal Interpreter > --- WEAPON (2) ------- (None) > --- INVENTORY (5) ---- Improved Deuterium Engine Seismic Detector Mining Claw Peak State ------------ > --- POWER ------------ (None) > --- PROPULSION ------- Light Treads Advanced Treads Compact Wheel Compact Wheel Compact Wheel Compact Wheel Compact Wheel Compact Wheel > --- UTILITY ---------- Improved Sensor Array Improved Signal Interpreter Improved Light Armor Plating > --- WEAPON ----------- Mining Claw > --- INVENTORY -------- Improved Deuterium Engine Gravmag System Seismic Detector [Rating: 20] Favorites ----------- Power Light Ion Engine Engine Light Ion Engine Propulsion Compact Wheel Treads Light Treads Leg Aluminum Leg Wheel Compact Wheel Hover Unit Gravmag System Flight Unit Nuclear Pulse Thruster Utility Improved Signal Interpreter Device Seismic Detector Processor Improved Signal Interpreter Protection Improved Light Armor Plating Weapon Mining Claw Slashing Weapon Mining Claw Build | -11 -10 -9 -9 -8 -7 -6 ------- Run | Yrd Mat Mat Sto Mat Fac Fac Slots Evolved 8 | . . 2 . 2 2 2 Power 1 | . . . . . . 1 Propulsion 6 | . . 2 . 1 2 1 Utility 1 | . . . . 1 . . Weapon . | . . . . . . . Parts Attached 29 | 4 . 3 5 2 6 9 Power 2 | 2 . . . . . . Engine 2 | 2 . . . . . . Core . | . . . . . . . Reactor . | . . . . . . . Propulsion 21 | 2 . 2 4 . 6 7 Treads 3 | 2 . . . . 1 . Leg 9 | . . 2 4 . . 3 Wheel 7 | . . . . . 5 2 Hover 1 | . . . . . . 1 Flight 1 | . . . . . . 1 Utility 5 | . . . 1 2 . 2 Device 2 | . . . 1 . . 1 Storage . | . . . . . . . Processor 1 | . . . . 1 . . Hackware . | . . . . . . . Protection 2 | . . . . 1 . 1 Artifact . | . . . . . . . Weapon 1 | . . 1 . . . . Energy Gun . | . . . . . . . Energy Cannon . | . . . . . . . Ballistic Gun . | . . . . . . . Ballistic Cannon . | . . . . . . . Launcher . | . . . . . . . Special Weapon . | . . . . . . . Impact Weapon . | . . . . . . . Slashing Weapon 1 | . . 1 . . . . Piercing Weapon . | . . . . . . . Special Melee Weapon . | . . . . . . . Unidentified Prototypes . | . . . . . . . Parts Lost 16 | . . . 2 . . 14 Power 1 | . . . 1 . . . Propulsion 13 | . . . 1 . . 12 Utility 2 | . . . . . . 2 Weapon . | . . . . . . . Highest Loss Streak 11 | . . . 2 . . 11 To Critical Strikes . | . . . . . . . Average Backups 3 | . 3 1 3 3 3 4 Power . | . 1 1 . . . 1 Propulsion . | . 2 . 2 1 1 . Utility 1 | . . . . 1 1 1 Weapon . | . . . . 1 1 . Tool/Special . | . . . . . . . Unused Backups 1 | . . . . . . 1 Power 1 | . . . . . . 1 Propulsion . | . . . . . . . Utility . | . . . . . . . Weapon . | . . . . . . . Tool/Special . | . . . . . . . Average Slot Usage (%) 51 | . 42 54 62 57 67 38 Engine 3 | . 14 11 10 . . . Treads 8 | . 28 22 2 . 13 5 Leg 18 | . . 21 41 45 17 2 Wheel 10 | . . . . . 19 19 Processor 4 | . . . . 7 7 6 Protection 3 | . . . . 5 7 3 Peak Build Rating 20 | 3 3 6 8 13 16 20 Average Rating 10 | 2 3 5 6 10 15 13 On Entrance 6 | . 3 3 5 5 12 16 Avg Prop Armor Cover (%) 34 | 35 34 37 38 36 34 31 Naked Turns . | . . . . . . . Heaviest Build 6 | 3 3 3 6 3 3 5 Greatest Support 64 | 20 3 20 43 53 64 20 Greatest Overweight (x) 1 | . . . . . . 1 Average Overweight (x) . | . . . . . . . Largest Inventory Capacity 5 | 5 5 5 5 5 5 5 Average Capacity 5 | 5 5 5 5 5 5 5 Most Carried 5 | 3 3 2 5 3 5 5 Average Carried 3 | 1 3 1 3 2 3 4 Final Capacity 5 | 5 5 5 5 5 5 5 Final Carried 5 | 3 3 2 4 3 5 3 Class Distribution -------------------- 100% | Mutant Dominant Class ---------------- Mutant | -10/Materials Mutant | -9/Materials Mutant | -9/Storage Mutant | -8/Materials Mutant | -7/Factory Mutant | -6/Factory Resources | -11 -10 -9 -9 -8 -7 -6 ----------- Run | Yrd Mat Mat Sto Mat Fac Fac Matter Collected 394 | 194 . . . . 65 135 Remotely . | . . . . . . . Salvage Created . | . . . . . . . Parts . | . . . . . . . Haulers Intercepted . | . . . . . . . Recyclers Shooed . | . . . . . . . Parts Field Recycled . | . . . . . . . Retrieved Matter . | . . . . . . . Parts Self-Destructed . | . . . . . . . Prevented . | . . . . . . . Parts Restored . | . . . . . . . Kills | -11 -10 -9 -9 -8 -7 -6 ------- Run | Yrd Mat Mat Sto Mat Fac Fac Combat Hostiles Destroyed . | . . . . . . . Classes Destroyed . | . . . . . . . Best Kill Streak . | . . . . . . . Combat Bots Only . | . . . . . . . Max Kills in Single Turn . | . . . . . . . Gunslinging . | . . . . . . . Exploded . | . . . . . . . Melee . | . . . . . . . Uniques/NPCs Destroyed . | . . . . . . . Combat | -11 -10 -9 -9 -8 -7 -6 -------- Run | Yrd Mat Mat Sto Mat Fac Fac Hostile Shots Fired 407 | . . 34 42 7 73 251 Missed 189 | . . 14 15 4 33 123 Hits 218 | . . 20 27 3 40 128 Projectile 218 | . . 20 27 3 40 128 Critical Strikes 2 | . . . . . . 2 Actively Blocked 1 | . . . . . . 1 Damage Taken 2959 | . . 248 294 23 393 2001 Core 1021 | . . 61 67 . 28 865 Absorbed by Shields 17 | . . . . . 17 . Redirected to Shielding 55 | . . . . . . 55 Core Remaining (%) 92 | 100 100 . 68 100 96 . Volleys Fired . | . . . . . . . Largest . | . . . . . . . Hottest . | . . . . . . . Shots Fired . | . . . . . . . Gun . | . . . . . . . Cannon . | . . . . . . . Launcher . | . . . . . . . Special . | . . . . . . . Kinetic . | . . . . . . . Thermal . | . . . . . . . Explosive . | . . . . . . . Electromagnetic . | . . . . . . . Robot Hit Streak . | . . . . . . . Robot Miss Streak . | . . . . . . . Penetration Max . | . . . . . . . Secondary Targets . | . . . . . . . Shots Hit Robots . | . . . . . . . Core Hits 2 | . . . . . . 2 Critical Kills . | . . . . . . . Critical Parts Destroyed . | . . . . . . . Critical Strikes . | . . . . . . . Melee Attacks 4 | . . . 2 1 . 1 Impact . | . . . . . . . Slashing 4 | . . . 2 1 . 1 Piercing . | . . . . . . . Sneak Attacks . | . . . . . . . Combat Hostiles . | . . . . . . . Follow-up Attacks . | . . . . . . . Damage Inflicted 30 | . . . . . . 30 Guns . | . . . . . . . Cannons . | . . . . . . . Explosions . | . . . . . . . Melee . | . . . . . . . Ramming 30 | . . . . . . 30 Kinetic . | . . . . . . . Thermal . | . . . . . . . Explosive . | . . . . . . . Electromagnetic . | . . . . . . . Impact . | . . . . . . . Slashing . | . . . . . . . Piercing . | . . . . . . . Highest Corruption . | . . . . . . . Average Corruption . | . . . . . . . Corruption Purged . | . . . . . . . Corruption Blocked . | . . . . . . . Overload Shots . | . . . . . . . Overflow Damage . | . . . . . . . Projectiles . | . . . . . . . Explosions . | . . . . . . . Melee . | . . . . . . . Knockbacks . | . . . . . . . Impact . | . . . . . . . Kinetic . | . . . . . . . Secondary . | . . . . . . . Self-Inflicted Damage 13 | . . . . . . 13 Shots . | . . . . . . . Rammed 5 | . . . . . . 5 Targets Rammed 5 | . . . . . . 5 Kicked . | . . . . . . . Crushed . | . . . . . . . Highest Temperature . | . . . . . . . Average Temperature . | . . . . . . . Received Heat Transfer 450 | . . 51 33 . 84 282 Siege Activations . | . . . . . . . Martial Activations . | . . . . . . . Shielding Activations . | . . . . . . . Robots Disrupted . | . . . . . . . Combat Hostiles . | . . . . . . . Robots Corrupted . | . . . . . . . Combat Hostiles . | . . . . . . . Parts Fried . | . . . . . . . Impact Corruptions . | . . . . . . . Robots Melted . | . . . . . . . Combat Hostiles . | . . . . . . . Parts Melted . | . . . . . . . Heat Transferred . | . . . . . . . Parts Sabotaged . | . . . . . . . Parts Stolen . | . . . . . . . Parts Stripped . | . . . . . . . Power Chain Reactions . | . . . . . . . Alert | -11 -10 -9 -9 -8 -7 -6 ------- Run | Yrd Mat Mat Sto Mat Fac Fac Maximum Alert Level 1 | . . . . . . 1 Low Security (%) 99 | 100 100 100 100 100 100 99 Level 1 . | . . . . . . . Level 2 . | . . . . . . . Level 3 . | . . . . . . . Level 4 . | . . . . . . . Level 5 . | . . . . . . . High Security . | . . . . . . . Max Security . | . . . . . . . Peak Influence 204 | . . 60 32 35 60 204 Initial 25 | . . . 25 14 9 19 Average 22 | . . 10 12 16 18 37 Influence Increases 760 | . . 92 82 65 96 425 Successful Hack 24 | . . 2 7 4 6 5 Disable Machine 30 | . . . 15 . . 15 Destroy Structure 1 | . . . . 1 . . Partial Spotted 30 | . . . 15 15 . . Lose Combat Pursuer 675 | . . 90 45 45 90 405 Influence Decreases 566 | . . 32 107 80 76 271 Entered New Map 88 | . . . 35 21 11 21 Time Decay 393 | . . 32 57 59 65 180 Lost Part 85 | . . . 15 . . 70 Squads Dispatched 6 | . . 1 2 . 1 2 Investigation 1 | . . . 1 . . . Extermination 1 | . . . . . . 1 Reinforcement 4 | . . 1 1 . 1 1 Assault . | . . . . . . . Garrison . | . . . . . . . Intercept . | . . . . . . . Searches Triggered . | . . . . . . . Construction Impeded . | . . . . . . . Haulers Reinforced . | . . . . . . . Active Scanning Responses . | . . . . . . . Cargo Convoy Interrupts . | . . . . . . . Stealth | -11 -10 -9 -9 -8 -7 -6 --------- Run | Yrd Mat Mat Sto Mat Fac Fac Distress Signals 4 | . . 1 2 . 1 . Communications Jammed . | . . . . . . . Distress Signals . | . . . . . . . Times Spotted 89 | . . 16 15 3 13 42 Peak Tracking Total 17 | . . 12 17 3 6 13 Tactical Retreats 18 | . . 4 1 1 3 9 Traps | -11 -10 -9 -9 -8 -7 -6 ------- Run | Yrd Mat Mat Sto Mat Fac Fac Traps Triggered 4 | . . . 2 . 1 1 Indirectly . | . . . . . . . Trap Hack Attempts . | . . . . . . . Triggered . | . . . . . . . Disarmed . | . . . . . . . Reprogrammed . | . . . . . . . Reused . | . . . . . . . Traps Extracted . | . . . . . . . Installed . | . . . . . . . Triggered . | . . . . . . . Machines | -11 -10 -9 -9 -8 -7 -6 ---------- Run | Yrd Mat Mat Sto Mat Fac Fac Machines Disabled 2 | . . . 1 . . 1 Max in Single Turn 1 | . . . 1 . . 1 Machines Repaired . | . . . . . . . Machines Dismantled . | . . . . . . . Machines Sabotaged . | . . . . . . . Overloaded Fab Kills . | . . . . . . . Hacking | -11 -10 -9 -9 -8 -7 -6 --------- Run | Yrd Mat Mat Sto Mat Fac Fac Machines Accessed 9 | . 1 1 1 2 3 1 Terminals 6 | . 1 . 1 1 2 1 Fabricators . | . . . . . . . Repair Stations . | . . . . . . . Recycling Units 1 | . . . . . 1 . Scanalyzers 2 | . . 1 . 1 . . Garrison Access . | . . . . . . . Total Hacks 12 | . 1 2 1 2 4 2 Successful 10 | . 1 2 1 2 3 1 Failed 2 | . . . . . 1 1 Catastrophic . | . . . . . . . Database Lockouts . | . . . . . . . Manual 1 | . . . . . 1 . Terminals 8 | . 1 . 1 1 3 2 Fabricators . | . . . . . . . Repair Stations . | . . . . . . . Recycling Units 1 | . . . . . 1 . Scanalyzers 3 | . . 2 . 1 . . Garrison Access . | . . . . . . . Terminal Hacks 7 | . 1 . 1 1 3 1 Record 2 | . . . . . 2 . Open Door 1 | . . . 1 . . . Open DSF 1 | . . . . . . 1 Emergency Access Points 1 | . . . . . 1 . Locate Traps 2 | . 1 . . 1 . . Fabricator Hacks . | . . . . . . . Repair Station Hacks . | . . . . . . . Recycling Unit Hacks . | . . . . . . . Scanalyzer 3 | . . 2 . 1 . . Retrieve Study 3 | . . 2 . 1 . . Garrison Access Hacks . | . . . . . . . Unauthorized Hacks . | . . . . . . . Terminals . | . . . . . . . Fabricators . | . . . . . . . Repair Stations . | . . . . . . . Recycling Units . | . . . . . . . Scanalyzers . | . . . . . . . Garrison Access . | . . . . . . . Data Cores Recovered . | . . . . . . . Used . | . . . . . . . Hacking Detections 5 | . . . 1 1 2 1 Full Trace Events . | . . . . . . . Feedback Events . | . . . . . . . Feedback Blocked . | . . . . . . . Robot Schematics Acquired . | . . . . . . . Robots Built . | . . . . . . . Authchips . | . . . . . . . Time . | . . . . . . . Total Robot Build Rating . | . . . . . . . Part Schematics Acquired . | . . . . . . . Parts Built . | . . . . . . . Authchips . | . . . . . . . Time . | . . . . . . . Total Part Build Rating . | . . . . . . . Part Studies Acquired 3 | . . 2 . 1 . . Parts Repaired . | . . . . . . . Time . | . . . . . . . Parts Recycled . | . . . . . . . Recycled Matter . | . . . . . . . Retrieved Matter . | . . . . . . . Retrieved Components . | . . . . . . . Parts Scanalyzed . | . . . . . . . Part Schematics Acquired . | . . . . . . . Parts Damaged . | . . . . . . . Bothacking | -11 -10 -9 -9 -8 -7 -6 ------------ Run | Yrd Mat Mat Sto Mat Fac Fac Used RIF Installer . | . . . . . . . Robots Hacked . | . . . . . . . Non-combat . | . . . . . . . Combat . | . . . . . . . Robot Hacks Applied . | . . . . . . . Relay Couplers Released . | . . . . . . . Fabnet Peak Effective % . | . . . . . . . Robots Rewired . | . . . . . . . Allies Hacked . | . . . . . . . Hacks Repelled . | . . . . . . . Allies | -11 -10 -9 -9 -8 -7 -6 -------- Run | Yrd Mat Mat Sto Mat Fac Fac Total Allies . | . . . . . . . Largest Group . | . . . . . . . Highest-Rated Group . | . . . . . . . Highest-Rated Ally . | . . . . . . . Total Orders . | . . . . . . . Ally Attacks . | . . . . . . . Total Damage . | . . . . . . . Kills . | . . . . . . . Allies Corrupted . | . . . . . . . Allies Melted . | . . . . . . . Intel | -11 -10 -9 -9 -8 -7 -6 ------- Run | Yrd Mat Mat Sto Mat Fac Fac Active Infowar (turns) 67 | . . . 63 . . 4 Sensors 4 | . . . . . . 4 Seismic 63 | . . . 63 . . . Robot Analysis Total . | . . . . . . . Derelict Logs Recovered . | . . . . . . . Drone Launches . | . . . . . . . Drone Recoveries . | . . . . . . . Exploration | -11 -10 -9 -9 -8 -7 -6 ------------- Run | Yrd Mat Mat Sto Mat Fac Fac Turns Passed 1129 | 51 26 133 167 136 184 432 Spaces Moved 1813 | 71 51 218 187 234 305 747 Core 1540 | 65 51 190 89 219 298 628 Treads 6 | 6 . . . . . . Legs 186 | . . 28 98 15 . 45 Wheels 7 | . . . . . 7 . Hover . | . . . . . . . Flight 74 | . . . . . . 74 Fastest Speed 40 | 50 50 50 50 50 50 40 Average Speed 56 | 59 50 58 79 53 51 54 Slowest Speed 160 | 160 50 120 108 108 100 120 Overloaded Moves . | . . . . . . . Propulsion Burnouts . | . . . . . . . Robots Hopped 5 | . . . . . . 5 Potential Cave-ins . | . . . . . . . Cave-ins Triggered . | . . . . . . . Exploration Rate (%) 20 | 3 16 25 39 22 13 23 Regions Visited 6 Branch Regions 1 Pre-discovered Areas . | . . . . . . . Known Exits Taken 2 | . . . . 1 1 . Unknown Exits Taken 4 | 1 1 1 1 . . . Scrap Searched . | . . . . . . . Spaces Dug 1 | . . . . 1 . . Terrain Destroyed 1 | . . . . 1 . . Melee 1 | . . . . 1 . . Projectile . | . . . . . . . AOE . | . . . . . . . Terrain Rammed . | . . . . . . . Walls Destroyed . | . . . . . . . Machines Disabled . | . . . . . . . Actions | -11 -10 -9 -9 -8 -7 -6 --------- Run | Yrd Mat Mat Sto Mat Fac Fac Total 1882 | 77 50 221 200 241 329 764 Wait 5 | . . . . 2 3 . Move 1798 | 70 50 217 186 233 304 738 Hop 4 | . . . . . . 4 Pick Up 5 | 2 . . . . 2 1 Fast Attach 16 | 4 . 1 1 2 1 7 Attach 13 | . . 2 3 2 1 5 Detach 8 | 1 . 1 3 1 . 2 Swap 9 | . . . 4 . 5 . Drop 2 | . . . 1 . . 1 Fire . | . . . . . . . Melee 4 | . . . 2 1 . 1 Ram 5 | . . . . . . 5 Kick . | . . . . . . . Crush . | . . . . . . . Escape Stasis 13 | . . . . . 13 . Rewire . | . . . . . . . Trap . | . . . . . . . Miscellaneous . | . . . . . . . Route ------- -11/Scrapyard -10/Materials -9/Materials (discovered 2 exits: [*Min] / *Sto) -9/Storage -8/Materials -7/Factory -6/Factory (discovered 1 exit: [*Fac]) History --------- Turn | Location | Event 3 | -11/Scrapyard | Discovered new exit (range 15) 52 | -11/Scrapyard | Entered Materials 75 | -10/Materials | Discovered new exit (range 6) 78 | -10/Materials | Entered another Materials area 78 | -9/Materials | Evolved 2 slots: Propulsion x2 204 | -9/Materials | Discovered new exit (range 13) 210 | -9/Materials | Discovered new exit (range 13) 211 | -9/Materials | Entered Storage 311 | -9/Storage | Build established: Mutant 371 | -9/Storage | Discovered new exit (range 16) 378 | -9/Storage | Entered Materials 378 | -8/Materials | Evolved 2 slots: Propulsion x1, Utility x1 507 | -8/Materials | Discovered new exit (range 15) 513 | -8/Materials | Identified exit to Factory 514 | -8/Materials | Entered Factory 514 | -7/Factory | Evolved 2 slots: Propulsion x2 680 | -7/Factory | Discovered new exit (range 11) 698 | -7/Factory | Identified exit to Factory 698 | -7/Factory | Entered another Factory area 698 | -6/Factory | Evolved 2 slots: Power x1, Propulsion x1 794 | -6/Factory | Spotted B-75 Beast 951 | -6/Factory | Core integrity fell below 50% 975 | -6/Factory | Lost 11 parts (10n1u) 1122 | -6/Factory | Core integrity fell below 20% 1123 | -6/Factory | Discovered new exit (range 16) 1130 | -6/Factory | Destroyed by S-27 Virus with Autogun Last Messages --------------- Arm. Huge Wheel broken. Destabilizing: Short circuit. Slammed into R-10 Processor. Destabilizing: Core damaged (-8). Acquired Imp. Titanium Leg. Slammed into W-25 Informer. ALERT: Cargo convoy en route, clear transfer corridor. ALERT: Potential suspicious activity detected, Programmers report to Factory Zone 2F. ALERT: Hostiles spotted, dispatching reinforcements to Terminal F011. Knocked back. K-01 Serf suffers critical hit (Destroy). Knocked back. Acquired 8 matter. EXIT=FOUND Knocked back. Critical hit (Burn: +37). Core Shielding destroyed. Map ----- +----------------------------------------------------+ | ?????????????????????????????????????????????????? | | ?????????????????????????????????????????????????? | | ?????????????????????????????????????????????????? | | ?????????????????????????????????????????????????? | | ?????????????????????????????????????????????????? | | ?????????????????????????????????????????????????? | | ?????????????????????????????????????????????????? | | ?????????????????????????????????????????????????? | | ?????????????????????????????????????????????????? | | ?????????????????????????????????????????????????? | | ?????????????????????????????????????????????????? | | ??????????????????????????????#####??????????????? | | ?????????????????????????? ??? #??????????????? | | ????????????????????????? ?? #??????????????? | | ?????????????????????#???" """ #??????????????? | | ??????????????????u??# """ """ #??????????????? | | ?????????????????????# """ """ #??????????????? | | ?????????????????????# #??????????????? | | ?????????????????????# #??????????????? | | ?????????????????????# #??????????????? | | ?????????????????????# "" "" #??????????????? | | ?????????????????????# ""S"" #??????????????? | | ?????????????????????# """" !#??????????????? | | ?????????????????????# #??????????????? | | ??????????????+#############%######??????????????? | | ??????????# @ #????????????????? | | ??????????# H ss % #????????????????? | | ?????????? < s #????????????????? | | ??????????? #????????????????? | | ??????????? s #????????????????? | | ????????????######## #????????????????? | | ???????????????????# #????????????????? | | ???????????????????# #????????????????? | | ?????????????????# #????????????????? | | #????????????????# p R#????????????????? | | #????????????????# % #????????????????? | | #????????????????# k #????????????????? | | #????????????????### #### #????????????????? | | #??????????????????# #??# #????????????????? | | ??????????????????# #??# ??????????????? | | ???????????????????# #??# ????????????? | | " ???????????#########/#### ???????????? | | ???????????# # ???????????? | | ???????????# # ???????????? | | #???????????# # ??????????? | | #???????????# # ??????????? | | ###?????????# # ????????????? | | ######????# + ??????????????? | | ###### # ?????????????????? | | / # ???????????????????? | +----------------------------------------------------+ Best States ------------- Heat Dissipation 37 Energy Generation 11 Energy Capacity 125 Matter Stores 254 Matter Capacity 300 Sight Range 16 Robot Scan Range 15 Terrain Scan Density 10 Armor Coverage 150 Core Shielding 20 Evasion (%) 62 Recoil Reduction 1 Item Schematics ----------------- None Robot Schematics ------------------ None Fabricated ------------ Nothing Repaired ---------- Nothing Studied --------- Lgt. Ion Engine | -9/Materials | Hacked Aluminum Leg | -9/Materials | Hacked Imp. Aluminum Leg | -8/Materials | Hacked Alien Tech Used ----------------- None Achievements -------------- None Challenges ------------ None Game ------ Seed AlloyVisualReactor Manual? 0 Play Time 00:28:09 Cumulative 33.5 hours Start 2026.06.24 @ 20:39:59 End 2026.06.24 @ 21:03:41 Sessions 1 Manual Loads 0 Difficulty Rogue Special Mode None Game No. 65 Rogue 65 Adventurer 0 Explorer 0 Win Type - Total 0 Types 0/0/0/0/0/0/0/0/0/0 Lore% 30 Gallery% 21 Achievement% 21 Wizard Run 0 Options --------- Layout 1 ASCII 0 Keyboard 1 Movement Arrows Keybinds 0 Fullscreen 0 Font 14/SmallcapsGlow Map View 55x38 Zoom Use 0% Tactical HUD 0 Map Filters NONE Filters NONE Steam 1 RUN: 7eb64955-e443-4cb5-b388-65cbcee2ca91